bitfinex-derivatives/quotes_ETHF0:USTF0_20210705
["timestamp","ask_amount","ask_price","bid_price","bid_amount"]
[1625516892460,1.0,2223.2,2221.6,39.7691]
[1625516893060,2.20527,2222.5,2222.3,2.20527]
[1625516895062,2.20527,2222.5,2222.4,50.791]
[1625516895167,2.20527,2222.8,2222.4,50.791]
[1625516895266,1.0,2223.0,2222.4,50.791]
[1625516895364,1.26431431,2223.7,2222.4,50.791]
[1625516895467,4.759,2223.8,2222.4,50.791]
[1625516895916,1.26582337,2224.2,2222.4,50.791]
[1625516896374,1.0,2224.1,2222.4,50.791]
[1625516897116,2.20527,2223.7,2223.6,2.20527]
[1625516898975,3.20527,2223.7,2223.6,2.20527]
[1625516899125,5.41054,2223.7,2223.6,2.20527]
[1625516899224,4.41054,2223.7,2223.6,2.20527]
[1625516899628,5.41054,2223.7,2223.6,2.20527]
[1625516900627,5.41054,2223.7,2223.5,41.1018]
[1625516913980,3.20527,2223.7,2223.5,41.1018]
[1625516915281,2.20527,2223.6,2223.5,43.30707]
[1625516915380,3.20527,2223.6,2223.5,43.30707]
[1625516924074,2.20527,2223.6,2223.5,43.30707]
[1625516924176,1.0,2224.2,2223.5,43.30707]
[1625516924378,1.0,2224.2,2223.5,46.71377]
[1625516925329,1.0,2224.2,2224.1,2.20527]
[1625516925731,1.0,2224.2,2223.5,41.1018]
[1625516925831,4.1072,2224.2,2222.4,52.11454185]
[1625516925939,4.1072,2224.2,2222.5,0.20771556]
[1625516926429,4.1072,2224.2,2222.6,0.13325248]
[1625516926929,4.1072,2224.2,2222.4,50.791]
[1625516927130,5.37487897,2224.2,2222.5,0.20774916]
[1625516927379,5.37487897,2224.2,2223.7,2.20527]
[1625516927380,2.20527,2223.8,2223.7,2.20527]
[1625516927481,3.20527,2223.8,2223.3,43.2671]
[1625516929244,3.20527,2223.8,2222.4,50.791]
[1625516929343,6.05217,2223.8,2222.4,50.791]
[1625516929444,2.20527,2223.1,2222.9,2.20527]
[1625516929544,3.20527,2223.1,2222.9,2.20527]
[1625516929794,2.20527,2223.1,2222.9,2.20527]
[1625516930212,3.20527,2223.1,2222.9,2.20527]
[1625516931416,5.41054,2223.1,2222.9,2.20527]
[1625516934331,5.41054,2223.1,2222.1,1.32691366]
[1625516934542,5.0,2223.0,2222.1,1.32691366]
[1625516934628,1.0,2222.9,2222.1,1.32691366]
[1625516934939,1.0,2222.9,2222.0,1.85767912]
[1625516934940,1.26712209,2222.5,2222.0,1.85767912]
[1625516935026,43.2116,2222.2,2221.0,0.70673359]
[1625516935126,1.0,2222.1,2221.0,0.70673359]
[1625516935426,1.0,2222.1,2221.1,0.80005379]
[1625516935827,1.0,2222.1,2221.1,0.1333423]
[1625516936080,1.77289201,2222.0,2221.1,0.1333423]
[1625516936181,1.0,2221.9,2220.9,0.13337855]
[1625516936480,1.77187764,2221.7,2220.9,0.13337855]
[1625516936580,3.3006,2221.6,2220.1,1.86011735]
[1625516936779,3.3006,2221.6,2220.2,0.20797066]
[1625516936882,3.3006,2221.6,2220.2,1.0082858]
[1625516937181,3.3006,2221.6,2220.3,0.20797812]
[1625516937279,3.3006,2221.6,2220.7,45.7178]
[1625516937480,2.20527,2221.1,2220.9,2.20527]
[1625516938079,2.20527,2221.1,2221.0,0.13337566]
[1625516938179,2.20527,2221.1,2221.0,3.11677566]
[1625516938782,2.20527,2221.1,2221.0,2.9834]
[1625516939183,2.20527,2221.1,2221.0,3.11677196]
[1625516939433,2.20527,2221.1,2221.0,5.32204196]
[1625516940885,1.0,2221.8,2221.0,5.32204196]
[1625516941085,1.0,2222.2,2221.0,5.32204196]
[1625516941190,1.77196601,2222.5,2221.0,5.32204196]
[1625516941386,1.77196601,2222.5,2221.1,0.80004581]
[1625516941487,2.20527,2222.4,2222.3,2.20527]
[1625516941585,2.20527,2222.4,2222.3,5.16107]
[1625516941685,2.20527,2222.4,2222.3,2.9558]
[1625516943442,2.20527,2222.4,2222.3,5.16107]
[1625516943792,2.20527,2222.6,2222.3,5.16107]
[1625516945262,1.0,2223.1,2222.3,5.16107]
[1625516945462,1.0,2223.1,2223.0,2.20527]
[1625516945562,1.0,2223.1,2223.0,4.47607]
[1625516945711,1.7744513,2223.3,2223.0,4.47607]
[1625516945811,2.20527,2223.4,2223.0,4.47607]
[1625516945911,3.20527,2223.4,2223.0,4.47607]
[1625516946011,2.20527,2223.4,2223.0,4.47607]
[1625516947513,2.20527,2223.4,2223.3,2.20527]
[1625516950926,1.0,2224.1,2223.3,2.20527]
[1625516951028,1.7689556,2224.2,2223.3,2.20527]
[1625516951479,2.20527,2224.2,2224.1,4.41054]
[1625516952834,3.20527,2224.2,2224.1,4.41054]
[1625516952935,3.20527,2224.2,2224.0,46.0839]
[1625516953035,5.67257,2224.2,2224.0,46.0839]
[1625516953587,2.20527,2224.1,2224.0,46.0839]
[1625516953687,3.20527,2224.1,2224.0,46.0839]
[1625516954592,4.97505058,2224.1,2224.0,46.0839]
[1625516954841,3.20527,2224.1,2224.0,46.0839]
[1625516955741,3.20527,2224.1,2223.7,2.20527]
[1625516956193,5.63207,2224.1,2223.7,2.20527]
[1625516956844,7.40175451,2224.1,2223.7,2.20527]
[1625516957145,5.63207,2224.1,2223.7,2.20527]
[1625516957595,2.20527,2223.8,2223.7,2.20527]
[1625516957696,3.20527,2223.8,2223.7,2.20527]
[1625516964275,3.20527,2223.8,2222.9,42.442]
[1625516965575,3.20527,2223.8,2223.2,2.20527]
[1625516965880,4.97355002,2223.8,2223.2,2.20527]
[1625516966781,3.20527,2223.8,2223.2,2.20527]
[1625516967445,4.97389878,2223.8,2223.2,2.20527]
[1625516967629,2.20527,2223.5,2223.2,2.20527]
[1625516967729,1.0,2223.4,2223.2,2.20527]
[1625516969581,3.20527,2223.4,2223.2,2.20527]
[1625516970080,3.20527,2223.4,2222.9,44.64727]
[1625516971635,3.20527,2223.4,2223.3,2.20527]
[1625516974603,2.20527,2223.4,2223.3,2.20527]
[1625516975008,3.20527,2223.4,2223.3,2.20527]
[1625516978028,2.20527,2223.4,2223.3,2.20527]
[1625516978128,3.20527,2223.4,2223.3,2.20527]
[1625516978581,2.20527,2223.4,2223.3,2.20527]
[1625516978833,1.76697666,2223.8,2223.3,2.20527]
[1625516978937,1.76697666,2223.8,2223.3,5.11377]
[1625516979032,1.76715857,2223.9,2223.3,5.11377]
[1625516979131,2.76715857,2223.9,2223.3,5.11377]
[1625516979631,2.20527,2223.8,2223.6,2.20527]
[1625516979734,1.0,2223.7,2223.6,2.20527]
[1625516983348,1.0,2223.7,2222.9,42.442]
[1625516983649,1.0,2223.7,2223.0,2.20527]
[1625516983650,2.20527,2223.2,2223.0,2.20527]
[1625516983749,3.20527,2223.2,2223.0,2.20527]
[1625516983850,5.39207,2223.2,2223.0,2.20527]
[1625516984706,1.76506481,2223.1,2223.0,2.20527]
[1625516984812,2.76506481,2223.1,2223.0,2.20527]
[1625516984910,55.90246481,2223.1,2223.0,2.20527]
[1625516985672,56.34267,2223.1,2223.0,2.20527]
[1625516986023,58.86329084,2223.1,2223.0,2.20527]
[1625516986325,58.10717947,2223.1,2223.0,2.20527]
[1625516987846,58.10717947,2223.1,2222.2,15.0033]
[1625516987959,58.10717947,2223.1,2220.9,1.85641421]
[1625516988131,58.10717947,2223.1,2220.8,2.65202029]
[1625516988132,1.76365057,2223.0,2220.8,1.85636223]
[1625516988231,1.0,2222.9,2220.8,1.85636223]
[1625516988332,1.0,2222.9,2220.9,0.20716961]
[1625516988430,1.0,2222.9,2220.9,1.00719534]
[1625516988431,2.76289783,2222.9,2220.9,1.00719534]
[1625516988532,2.76289783,2222.9,2220.9,0.80002573]
[1625516988629,2.76289783,2222.9,2220.9,17.21983973]
[1625516988731,2.76289783,2222.9,2221.0,0.13333939]
[1625516989129,1.7635512,2222.8,2221.0,0.80003298]
[1625516989233,1.0,2222.7,2221.0,0.80003298]
[1625516989683,2.20527,2222.0,2221.9,2.20527]
[1625516989782,3.20527,2222.0,2221.9,2.20527]
[1625516991700,5.41054,2222.0,2221.9,2.20527]
[1625516993370,4.41054,2222.0,2221.9,2.20527]
[1625516994877,5.41054,2222.0,2221.9,2.20527]
[1625516996339,4.41054,2222.0,2221.9,2.20527]
[1625516998044,5.41054,2222.0,2221.9,2.20527]
[1625516998393,4.41054,2222.0,2221.9,2.20527]
[1625516999044,5.41054,2222.0,2221.9,2.20527]
[1625517000848,1.0,2222.0,2221.9,2.20527]
[1625517001751,3.20527,2222.0,2221.9,2.20527]
[1625517002052,2.20527,2222.0,2221.9,2.20527]
[1625517002954,2.20527,2222.2,2221.9,2.20527]
[1625517003803,2.20527,2222.2,2221.9,4.41054]
[1625517004005,1.0,2222.3,2221.9,4.41054]
[1625517004304,1.75995448,2223.1,2221.9,4.41054]
[1625517004544,1.0,2223.0,2222.4,48.474]
[1625517004619,1.0,2223.0,2222.4,51.3154]
[1625517005264,1.76017286,2223.4,2222.4,51.3154]
[1625517005468,1.0,2223.5,2222.4,51.3154]
[1625517005769,1.0,2223.5,2223.4,2.20527]
[1625517005871,3.96135068,2223.6,2223.4,2.20527]
[1625517005872,2.20527,2223.6,2223.4,5.34067]
[1625517006572,3.20527,2223.6,2223.4,5.34067]
[1625517006923,2.20527,2223.6,2223.4,5.34067]
[1625517008574,1.0,2223.7,2223.4,5.34067]
[1625517008674,1.74650597,2224.1,2223.4,5.34067]
[1625517008774,1.0,2224.2,2223.4,5.34067]
[1625517008875,1.74502516,2224.3,2223.4,5.34067]
[1625517009176,2.49289308,2224.4,2224.2,46.1265]
[1625517009177,1.74531295,2224.4,2224.2,46.1265]
[1625517009276,1.74531295,2224.4,2224.2,48.446]
[1625517009577,1.0,2224.7,2224.2,48.446]
[1625517009779,1.0,2224.7,2224.6,4.41054]
[1625517010279,2.20527,2225.1,2224.6,4.41054]
[1625517010583,1.74728805,2225.3,2224.6,4.41054]
[1625517010931,1.74292358,2225.7,2224.6,4.41054]
[1625517011030,2.74292358,2225.7,2224.6,4.41054]
[1625517011130,2.74292358,2225.7,2225.2,46.73]
[1625517011230,2.74292358,2225.7,2225.2,50.2554]
[1625517011331,1.74269497,2225.6,2225.2,50.2554]
[1625517011830,1.74269497,2225.6,2225.5,2.20527]
[1625517012282,2.20527,2225.7,2225.5,1.13965268]
[1625517012283,3.94482829,2225.7,2225.5,1.13965268]
[1625517012383,2.20527,2225.7,2225.5,1.13965268]
[1625517012880,1.73858637,2225.9,2225.5,1.13965268]
[1625517013182,1.73858665,2226.2,2225.5,1.13965268]
[1625517013484,2.74113522,2226.5,2225.5,1.13965268]
[1625517013583,1.74113522,2226.5,2225.5,1.13965268]
[1625517013783,2.20527,2226.4,2226.3,2.20527]
[1625517013886,2.20527,2226.4,2226.3,4.90857]
[1625517014184,2.20527,2226.4,2226.3,56.48617]
[1625517014392,3.20527,2226.4,2226.3,56.48617]
[1625517014489,2.20527,2226.4,2226.3,56.48617]
[1625517015091,1.73697162,2226.9,2226.3,56.48617]
[1625517015391,1.73769241,2227.0,2226.3,56.48617]
[1625517015792,2.20527,2226.9,2226.8,2.20527]
[1625517015892,2.20527,2226.9,2226.8,5.60527]
[1625517016493,3.20527,2226.9,2226.8,5.60527]
[1625517016793,3.20527,2226.9,2226.8,3.4]
[1625517016894,3.20527,2226.9,2226.8,0.7374936]
[1625517016993,3.20527,2226.9,2226.3,53.78287]
[1625517017892,2.20527,2226.4,2226.3,53.78287]
[1625517018094,3.20527,2226.4,2226.3,53.78287]
[1625517018597,1.0,2226.4,2226.3,53.78287]
[1625517018695,2.20527,2226.9,2226.3,53.78287]
[1625517018796,3.20527,2226.9,2226.3,56.53817]
[1625517019813,3.20527,2226.9,2226.7,2.20527]
[1625517020890,2.20527,2226.9,2226.7,2.20527]
[1625517021037,3.20527,2226.9,2226.7,2.20527]
[1625517021841,4.41054,2226.9,2226.7,2.20527]
[1625517022142,5.41054,2226.9,2226.7,2.20527]
[1625517023590,4.41054,2226.9,2226.7,2.20527]
[1625517023992,5.41054,2226.9,2226.7,2.20527]
[1625517027345,5.41054,2226.9,2226.7,1.14029837]
[1625517027550,5.41054,2226.9,2226.5,51.2099]
[1625517027652,5.41054,2226.9,2225.3,14.7588]
[1625517027850,2.20527,2225.8,2225.7,2.20527]
[1625517027953,1.0,2226.9,2225.7,2.20527]
[1625517028052,1.0,2226.9,2225.7,5.60477]
[1625517028256,1.0,2226.9,2226.5,53.2785]
[1625517028555,1.73142676,2227.7,2226.5,53.2785]
[1625517028658,1.0,2227.6,2226.5,53.2785]
[1625517029872,2.20527,2226.8,2226.7,2.20527]
[1625517029971,3.20527,2226.8,2226.7,2.20527]
[1625517031230,2.20527,2226.8,2226.7,2.20527]
[1625517031979,4.41054,2226.8,2226.7,2.20527]
[1625517038022,4.41054,2226.8,2226.5,55.48377]
[1625517038120,4.41054,2226.8,2225.2,46.73]
[1625517038220,1.0,2226.7,2225.2,46.73]
[1625517038421,1.0,2226.7,2224.2,46.1265]
[1625517039121,1.0,2226.7,2224.3,16.255695]
[1625517039971,2.20527,2225.8,2225.7,2.20527]
[1625517040222,2.20527,2225.8,2225.7,50.08367]
[1625517041983,4.41054,2225.8,2225.7,50.08367]
[1625517042290,5.41054,2225.8,2225.7,50.08367]
[1625517042932,5.41054,2225.8,2225.7,49.01849763]
[1625517043739,7.69784,2225.8,2225.7,49.01849763]
[1625517044942,4.41054,2225.8,2225.7,49.01849763]
[1625517045142,4.41054,2225.8,2225.7,51.45749763]
[1625517046650,4.41054,2225.8,2225.7,49.01849763]
[1625517050066,4.41054,2225.8,2225.7,52.55749763]
[1625517050162,13.9042,2227.2,2225.7,52.55749763]
[1625517051312,1.0,2227.1,2225.7,52.55749763]
[1625517052120,2.20527,2226.7,2226.6,5.74647]
[1625517052520,2.20527,2226.7,2226.6,49.12727]
[1625517053322,3.20527,2226.7,2226.6,49.12727]
[1625517054076,5.41054,2226.7,2226.6,49.12727]
[1625517054279,4.41054,2226.7,2226.6,49.12727]
[1625517054597,5.41054,2226.7,2226.6,49.12727]
[1625517054898,4.41054,2226.7,2226.6,49.12727]
[1625517055403,4.41054,2226.7,2226.6,46.922]
[1625517055501,5.41054,2226.7,2226.6,46.922]
[1625517056855,4.41054,2226.7,2226.6,46.922]
[1625517056955,5.41054,2226.7,2226.6,46.922]
[1625517058109,5.41054,2226.7,2226.6,49.12727]
[1625517059375,5.41054,2226.7,2226.6,46.922]
[1625517060428,4.41054,2226.7,2226.6,46.922]
[1625517060634,5.41054,2226.7,2226.6,46.922]
[1625517061880,4.41054,2226.7,2226.6,46.922]
[1625517062384,5.41054,2226.7,2226.6,46.922]
[1625517065204,4.41054,2226.7,2226.6,46.922]
[1625517074184,4.41054,2226.7,2226.6,49.12727]
[1625517080267,4.41054,2226.7,2226.0,2.20527]
[1625517080573,5.41054,2226.7,2226.0,2.20527]
[1625517080644,4.41054,2226.7,2226.0,2.20527]
[1625517080791,4.41054,2226.7,2226.6,50.773]
[1625517081290,2.20527,2226.7,2226.6,50.773]
[1625517081389,15.1672,2228.2,2226.6,53.5123]
[1625517081698,16.1672,2228.2,2226.6,53.5123]
[1625517081818,15.1672,2228.2,2226.6,53.5123]
[1625517082104,15.1672,2228.2,2228.0,38.0521]
[1625517082210,4.41054,2228.1,2228.0,41.0162]
[1625517082398,5.0,2229.6,2228.0,41.0162]
[1625517082697,1.0,2229.5,2228.0,39.95190972]
[1625517084159,1.0,2229.5,2229.1,40.4209]
[1625517084265,4.41054,2229.2,2229.1,42.835]
[1625517084357,5.41054,2229.2,2229.1,42.835]
[1625517085153,5.41054,2229.2,2229.1,40.17516394]
[1625517086079,5.41054,2229.2,2229.1,2.4141]
[1625517086252,5.41054,2229.2,2228.7,2.20527]
[1625517088306,2.20527,2228.8,2228.7,2.20527]
[1625517088656,3.20527,2228.8,2228.7,2.20527]
[1625517088757,2.20527,2228.8,2228.7,2.20527]
[1625517089859,3.20527,2228.8,2228.7,2.20527]
[1625517090860,3.20527,2229.2,2228.7,2.20527]
[1625517091011,3.20527,2229.2,2228.7,4.80387]
[1625517091412,3.20527,2229.2,2228.7,2.5986]
[1625517092267,2.20527,2228.8,2228.7,2.5986]
[1625517092361,3.20527,2228.8,2228.4,2.20527]
[1625517092462,3.20527,2228.8,2227.3,2.6729]
[1625517092568,6.06297,2228.8,2226.6,50.773]
[1625517093172,6.06297,2228.8,2227.1,16.213556]
[1625517094281,2.20527,2228.0,2227.9,2.20527]
[1625517094941,7e-05,2228.0,2227.9,2.20527]
[1625517095044,16.73080543,2229.4,2227.9,2.20527]
[1625517095140,1.0,2229.3,2227.9,5.61227]
[1625517096418,2.20527,2228.5,2228.3,2.20527]
[1625517096499,3.20527,2228.5,2228.3,2.20527]
[1625517097308,1.0,2228.5,2228.3,2.20527]
[1625517097612,14.9829,2229.4,2228.3,2.20527]
[1625517097698,1.0,2229.3,2228.3,5.32517]
[1625517098400,2.20527,2228.6,2228.3,5.32517]
[1625517098604,3.20527,2228.6,2228.3,5.32517]
[1625517099904,1.0,2228.6,2228.3,5.32517]
[1625517100353,3.20527,2228.6,2228.5,2.20527]
[1625517104321,3.20527,2228.6,2227.8,49.9987]
[1625517104418,3.20527,2228.6,2228.1,2.20527]
[1625517104519,3.20527,2228.6,2227.9,2.20527]
[1625517106374,3.20527,2228.6,2228.2,2.20527]
[1625517106522,3.20527,2228.6,2228.2,5.12727]
[1625517108444,2.20527,2228.3,2228.2,5.12727]
[1625517108545,3.20527,2228.3,2228.2,5.12727]
[1625517110054,2.20527,2228.3,2228.2,5.12727]
[1625517110399,3.20527,2228.3,2228.2,5.12727]
[1625517112869,2.20527,2228.3,2228.2,5.12727]
[1625517113173,3.20527,2228.3,2228.2,5.12727]
[1625517118007,3.20527,2228.3,2226.8,2.3426]
[1625517118137,9.10977,2228.3,2225.4,2.63269672]
[1625517118209,9.10977,2228.3,2225.8,0.20554378]
[1625517118335,9.10977,2228.3,2225.5,0.70058122]
[1625517118502,2.20527,2226.2,2226.1,2.20527]
[1625517118603,3.1288,2226.2,2226.1,2.20527]
[1625517119556,3.1288,2226.2,2225.8,2.20527]
[1625517120007,4.1288,2226.2,2225.8,2.20527]
[1625517120516,2.20527,2226.1,2225.8,2.20527]
[1625517120606,3.20527,2226.1,2225.8,2.20527]
[1625517121112,2.20527,2226.1,2225.8,2.20527]
[1625517121864,52.11737,2226.3,2225.8,2.20527]
[1625517122267,48.9121,2226.3,2225.8,2.20527]
[1625517122520,48.9121,2226.3,2226.2,2.20527]
[1625517125386,2.20527,2226.5,2226.2,2.20527]
[1625517125488,54.1716,2227.9,2226.2,2.20527]
[1625517125596,2.49737518,2228.0,2226.2,2.20527]
[1625517125790,4.759,2228.1,2226.2,2.20527]
[1625517125894,5.759,2228.1,2226.2,2.20527]
[1625517125994,1.0,2228.1,2226.2,2.20527]
[1625517126093,42.4048,2227.2,2226.2,2.20527]
[1625517126195,42.4048,2227.2,2226.3,16.19131]
[1625517126498,42.4048,2227.2,2227.1,4.41054]
[1625517126597,42.4048,2227.2,2227.1,7.19924]
[1625517126898,43.4048,2227.2,2227.1,7.19924]
[1625517127198,42.4048,2227.2,2227.1,7.19924]
[1625517127550,2.20527,2227.7,2227.1,7.19924]
[1625517127851,1.0,2227.6,2227.1,7.19924]
[1625517128169,2.20527,2227.7,2227.1,7.19924]
[1625517128566,2.20527,2227.7,2227.6,4.41054]
[1625517128667,2.20527,2227.7,2227.6,7.81234]
[1625517128969,3.20527,2227.7,2227.6,7.81234]
[1625517129169,2.20527,2227.7,2227.6,7.81234]
[1625517130322,3.20527,2227.7,2227.6,7.81234]
[1625517130825,2.20527,2227.7,2227.6,7.81234]
[1625517135027,1.0,2228.6,2227.6,7.81234]
[1625517136580,2.20527,2228.4,2228.2,2.20527]
[1625517136680,2.20527,2228.4,2228.2,5.01997]
[1625517136781,1.0,2228.3,2228.2,5.01997]
[1625517137933,2.20527,2228.4,2228.2,5.01997]
[1625517138034,1.0,2228.3,2228.2,5.01997]
[1625517139089,1.0,2228.3,2228.2,3.95587158]
[1625517139445,2.20527,2228.4,2228.2,3.95587158]
[1625517139543,1.0,2228.3,2228.2,3.95587158]
[1625517140754,1.0,2228.3,2228.2,2.8147]
[1625517141158,2.20527,2228.4,2228.2,2.8147]
[1625517141257,1.0,2228.3,2228.2,2.8147]
[1625517141358,1.0,2228.3,2227.1,2.7887]
[1625517141457,1.0,2228.3,2227.0,46.688]
[1625517142661,1.0,2228.3,2227.9,2.20527]
[1625517144621,2.20527,2228.0,2227.9,2.20527]
[1625517144720,3.20527,2228.0,2227.9,2.20527]
[1625517147993,3.20527,2228.0,2227.3,3.1126]
[1625517148092,3.20527,2228.0,2226.7,3.5341]
[1625517148194,3.20527,2228.0,2226.0,3.3943]
[1625517148295,3.20527,2228.0,2225.4,2.20715367]
[1625517148296,3.20527,2228.0,2225.4,0.8869]
[1625517148710,2.20527,2226.9,2226.7,2.20527]
[1625517149511,1.0,2226.8,2226.7,2.20527]
[1625517149610,3.5503,2226.8,2226.7,2.20527]
[1625517149762,2.5503,2226.8,2226.7,2.20527]
[1625517151011,1.0,2227.1,2226.7,2.20527]
[1625517151318,2.20527,2227.2,2226.7,2.20527]
[1625517151512,2.20527,2227.2,2226.7,5.54687]
[1625517151917,1.0,2227.1,2226.7,5.54687]
[1625517152563,2.20527,2227.2,2226.7,5.54687]
[1625517152663,2.20527,2227.2,2227.1,2.20527]
[1625517153378,2.20527,2227.2,2227.1,43.22147]
[1625517153481,14.3544,2228.0,2227.1,43.22147]
[1625517153780,2.52366626,2228.2,2227.1,43.22147]
[1625517153982,1.0,2228.1,2227.1,43.22147]
[1625517154684,1.0,2228.1,2227.9,2.20527]
[1625517154685,2.20527,2228.0,2227.9,2.20527]
[1625517154783,3.20527,2228.0,2227.9,2.20527]
[1625517154883,3.20527,2228.0,2227.9,4.84887]
[1625517155199,2.20527,2228.0,2227.9,4.84887]
[1625517155700,5.759,2228.5,2227.9,4.84887]
[1625517155999,1.0,2228.5,2227.9,4.84887]
[1625517156756,2.20527,2228.0,2227.9,7.05414]
[1625517157503,2.20527,2228.0,2227.9,62.42834]
[1625517159457,3.20527,2228.0,2227.9,62.42834]
[1625517159912,2.20527,2228.0,2227.9,62.42834]
[1625517161114,3.20527,2228.0,2227.9,62.42834]
[1625517161415,3.20527,2228.0,2227.9,7.05414]
[1625517162637,3.20527,2228.0,2227.9,4.84887]
[1625517162723,3.20527,2228.0,2227.9,2.20527]
[1625517162818,3.20527,2228.0,2227.6,2.20527]
[1625517164273,2.20527,2228.0,2227.6,2.20527]
[1625517164772,2.20527,2227.7,2227.6,2.20527]
[1625517167579,3.20527,2227.7,2227.6,2.20527]
[1625517167879,2.20527,2227.7,2227.6,2.20527]
[1625517169887,2.54171841,2228.1,2227.6,4.75117]
[1625517170385,2.54171841,2228.1,2228.0,48.5373]
[1625517170485,2.55135572,2228.2,2228.0,48.5373]
[1625517170584,3.55135572,2228.2,2228.0,48.5373]
[1625517170898,5.75662572,2228.2,2228.1,4.41054]
[1625517171000,5.75662572,2228.2,2228.1,7.78954]
[1625517171602,4.75662572,2228.2,2228.1,7.78954]
[1625517173857,2.20527,2228.2,2228.1,7.78954]
[1625517179482,3.071e-05,2228.3,2228.1,7.78954]
[1625517179882,1.0,2228.4,2228.1,7.78954]
[1625517182438,1.0,2228.4,2228.1,3.379]
[1625517182540,3.55226111,2228.4,2228.0,48.5373]
[1625517182739,3.55226111,2228.4,2227.1,41.0162]
[1625517182839,6.47656111,2228.4,2227.1,41.0162]
[1625517182940,2.20527,2228.0,2227.9,2.20527]
[1625517183042,3.20527,2228.0,2227.9,2.20527]
[1625517183839,3.20527,2228.0,2227.1,41.0162]
[1625517184292,5.75937976,2228.0,2227.1,41.0162]
[1625517185001,2.55363236,2227.9,2227.3,2.20527]
[1625517185100,1.0,2227.8,2227.3,2.20527]
[1625517185757,3.55422639,2227.8,2227.3,2.20527]
[1625517185961,3.55422639,2227.8,2227.1,41.0162]
[1625517186163,2.55422639,2227.8,2227.1,41.0162]
[1625517186363,4.76034828,2228.0,2227.1,41.0162]
[1625517186461,4.76034828,2228.0,2227.1,44.4841]
[1625517186670,3.20527,2228.0,2227.1,44.4841]
[1625517187019,2.20527,2227.7,2227.6,4.67847]
[1625517187271,3.20527,2227.7,2227.6,4.67847]
[1625517190325,2.20527,2227.7,2227.6,4.67847]
[1625517190780,2.55602143,2228.2,2227.6,4.67847]
[1625517190880,2.55602143,2228.2,2227.9,52.745]
[1625517191081,2.55602143,2228.2,2227.9,54.95027]
[1625517191482,2.5564342,2228.3,2227.9,54.95027]
[1625517191785,3.5564342,2228.3,2227.9,54.95027]
[1625517192683,1.0,2228.3,2227.9,54.95027]
[1625517193085,3.5559436,2228.3,2228.2,2.20527]
[1625517193184,3.5559436,2228.3,2228.2,4.66387]
[1625517193995,1.0,2228.3,2228.2,4.66387]
[1625517195046,4.75908697,2228.4,2228.2,4.66387]
[1625517195147,1.0,2228.3,2228.2,4.66387]
[1625517196848,1.0,2228.3,2228.2,2.20527]
[1625517197149,1.0,2228.3,2227.9,52.745]
[1625517197250,3.55074178,2228.3,2227.9,52.745]
[1625517198159,1.0,2228.3,2227.9,52.745]
[1625517198961,3.55030377,2228.3,2227.9,52.745]
[1625517199111,2.20527,2228.0,2227.9,54.95027]
[1625517202478,3.20527,2228.0,2227.9,54.95027]
[1625517202885,3.20527,2228.0,2227.9,2.20527]
[1625517203077,3.20527,2228.0,2227.1,41.0162]
[1625517203177,3.20527,2228.0,2227.5,2.20527]
[1625517203380,50.84637,2228.0,2227.5,2.20527]
[1625517205187,2.20527,2227.6,2227.5,2.20527]
[1625517205284,3.20527,2227.6,2227.5,2.20527]
[1625517205636,2.20527,2227.6,2227.5,2.20527]
[1625517206037,48.6411,2228.0,2227.5,2.20527]
[1625517206137,1.0,2228.0,2227.5,5.12587]
[1625517207037,1.0,2228.0,2227.8,49.2587]
[1625517207238,1.0,2228.0,2227.9,2.20527]
[1625517208088,1.0,2228.0,2227.5,2.9206]
[1625517209251,1.0,2228.0,2227.8,2.20527]
[1625517209589,1.0,2228.0,2227.6,2.20527]
[1625517209941,3.55345076,2228.0,2227.6,2.20527]
[1625517210040,3.55345076,2228.0,2227.1,41.0162]
[1625517210243,2.55463799,2227.9,2227.1,41.0162]
[1625517210341,1.0,2227.8,2227.1,41.0162]
[1625517211247,2.20527,2227.3,2227.2,2.20527]
[1625517213413,4.41054,2227.3,2227.2,2.20527]
[1625517217284,2.20527,2227.3,2227.2,2.20527]
[1625517217781,2.20527,2227.3,2227.2,2.33829116]
[1625517219184,2.20527,2227.3,2227.2,4.67849116]
[1625517221191,2.20527,2227.3,2227.2,4.54547]
[1625517224297,2.20527,2227.3,2227.2,2.20527]
[1625517224496,2.20527,2227.3,2227.0,2.20527]
[1625517224596,3.20527,2227.3,2227.0,2.20527]
[1625517225552,5.41054,2227.3,2227.0,2.20527]
[1625517228615,5.41054,2227.3,2226.9,2.20527]
[1625517228716,5.41054,2227.3,2226.8,39.4288]
[1625517229685,2.20527,2226.9,2226.8,39.4288]
[1625517229785,3.20527,2226.9,2226.8,39.4288]
[1625517231990,2.20527,2226.9,2226.8,39.4288]
[1625517232191,2.20527,2226.9,2226.8,39.56183737]
[1625517232642,2.20527,2227.3,2226.8,39.56183737]
[1625517232791,2.20527,2227.3,2226.8,42.65153737]
[1625517233293,1.0,2227.2,2226.9,0.1330303]
[1625517233697,1.0,2227.2,2227.0,2.20527]
[1625517234397,4.41054,2227.3,2227.0,2.20527]
[1625517235698,4.41054,2227.3,2227.0,4.41054]
[1625517235899,1.0,2227.2,2227.0,4.41054]
[1625517236352,4.41054,2227.3,2227.0,4.41054]
[1625517236850,4.41054,2227.3,2226.8,42.5185]
[1625517237552,5.41054,2227.3,2226.8,42.5185]
[1625517237752,5.41054,2227.3,2227.2,2.20527]
[1625517240007,1.0,2227.3,2227.2,2.20527]